bitfinex/quotes_SOLUSD_20220216
["timestamp","ask_amount","ask_price","bid_price","bid_amount"]
[1645034729210,60.7,98.889,98.82,15.1768]
[1645034729412,161.3,98.888,98.816,45.9153]
[1645034729811,60.7,98.888,98.816,45.9153]
[1645034730122,14.53,98.89,98.816,45.9153]
[1645034730310,14.53,98.89,98.82,15.1769]
[1645034730514,14.53,98.89,98.816,45.9153]
[1645034731311,29.7065,98.89,98.82,15.1769]
[1645034731914,29.7065,98.89,98.82,17.51436065]
[1645034732716,14.53,98.89,98.821,100.6]
[1645034732916,14.53,98.92,98.84,15.1737]
[1645034733217,14.53,98.92,98.821,100.6]
[1645034733218,14.53,98.95,98.841,100.6]
[1645034733417,1.42145266,98.956,98.841,102.93746065]
[1645034733615,1.42145266,98.974,98.843,100.6]
[1645034733815,1.42145266,98.969,98.843,100.6]
[1645034734015,100.6,98.959,98.86,15.1665]
[1645034734418,100.6,98.959,98.861,2.33746065]
[1645034734714,100.6,98.957,98.851,24.7298]
[1645034734916,102.02145266,98.957,98.851,24.7298]
[1645034735115,1.42145266,98.957,98.851,24.7298]
[1645034735818,15.1681,98.95,98.87,15.1684]
[1645034736717,60.7,98.949,98.87,15.1684]
[1645034737118,15.1691,98.94,98.87,15.1684]
[1645034739818,15.1691,98.94,98.871,5.055]
[1645034740020,15.1691,98.94,98.88,15.1678]
[1645034744145,15.1691,98.94,98.881,5.055]
[1645034744547,15.1691,98.94,98.87,15.1691]
[1645034746847,15.1691,98.94,98.871,2.33746065]
[1645034747046,15.1691,98.94,98.872,5.055]
[1645034747247,1.42145266,98.956,98.881,100.6]
[1645034747547,1.42145266,98.971,98.881,100.6]
[1645034747749,1.42145266,98.974,98.883,100.6]
[1645034747947,1.42145266,98.974,98.883,123.7747]
[1645034748147,1.42145266,98.975,98.884,2.33746065]
[1645034748347,1.42145266,98.976,98.885,100.6]
[1645034748751,14.53,98.99,98.885,100.6]
[1645034748752,1.42145266,98.974,98.886,2.33746065]
[1645034748947,1.42145266,98.975,98.9,15.1633]
[1645034749148,1.42145266,98.976,98.9,15.1633]
[1645034749350,1.42145266,98.976,98.901,24.4444]
[1645034749548,1.42145266,98.977,98.901,24.4444]
[1645034749748,1.42145266,98.983,98.901,24.4444]
[1645034749948,15.163,98.98,98.91,15.1621]
[1645034750550,1.42145266,98.985,98.91,15.1621]
[1645034751362,25.24915266,98.986,98.91,15.1621]
[1645034751568,23.8277,98.986,98.91,15.1621]
[1645034752662,23.8277,98.986,98.92,15.1608]
[1645034753061,15.1631,98.98,98.901,24.4444]
[1645034753462,100.6,98.979,98.901,24.4444]
[1645034753963,100.6,98.977,98.901,24.4444]
[1645034754162,100.6,98.969,98.901,24.4444]
[1645034755562,15.1661,98.96,98.89,15.1661]
[1645034755763,100.6,98.959,98.869,2.33746065]
[1645034755963,100.6,98.959,98.86,50.5545]
[1645034756963,15.1679,98.95,98.88,15.1676]
[1645034757164,29.6979,98.95,98.88,15.1676]
[1645034761772,1.42145266,98.957,98.89,15.166]
[1645034761971,1.42145266,98.973,98.891,100.6]
[1645034762269,1.42145266,98.982,98.891,108.16746065]
[1645034762469,1.42145266,98.987,98.893,100.6]
[1645034762670,1.42145266,98.982,98.893,100.6]
[1645034762870,1.42145266,98.982,98.894,2.33746065]
[1645034763070,1.42145266,98.984,98.894,2.33746065]
[1645034763273,5.74853171,99.006,98.894,2.33746065]
[1645034763274,1.42145266,98.985,98.894,2.33746065]
[1645034763470,1.42145266,98.988,98.91,15.1621]
[1645034763671,1.42145266,98.988,98.912,100.6]
[1645034763869,1.42145266,98.993,98.911,27.21086065]
[1645034764273,1.42145266,98.995,98.913,2.33746065]
[1645034764570,7.124161,99.106,98.913,2.33746065]
[1645034764571,1.42145266,98.999,98.93,15.1583]
[1645034764770,1.42145266,99.007,98.93,15.1583]
[1645034764973,1.42145266,99.01,98.931,127.01696065]
[1645034765170,1.42145266,99.015,98.931,127.01696065]
[1645034765374,1.42145266,99.017,98.932,2.33746065]
[1645034765773,1.42145266,99.023,98.932,2.33746065]
[1645034765970,1.42145266,99.023,98.951,100.6]
[1645034766171,1.42145266,99.024,98.951,100.6]
[1645034766369,1.42145266,99.022,98.951,100.6]
[1645034766571,1.42145266,99.031,98.932,102.93746065]
[1645034766982,1.42145266,99.027,98.932,2.33746065]
[1645034767177,24.5289,99.046,98.932,2.33746065]
[1645034767178,1.42145266,99.024,98.94,50.5129]
[1645034767376,1.42145266,99.018,98.932,2.33746065]
[1645034767580,1.42145266,99.017,98.932,2.33746065]
[1645034767779,1.42145266,99.016,98.932,2.33746065]
[1645034768076,1.42145266,99.02,98.932,102.93746065]
[1645034768277,1.42145266,99.019,98.95,15.1568]
[1645034768476,1.42145266,99.02,98.95,15.1568]
[1645034768975,1.42145266,99.021,98.95,15.1568]
[1645034769176,1.42145266,99.024,98.95,15.1568]
[1645034769379,1.42145266,99.029,98.95,15.1568]
[1645034769577,1.42145266,99.028,98.95,15.1568]
[1645034770186,1.42145266,99.029,98.95,15.1568]
[1645034770980,1.42145266,99.03,98.951,100.6]
[1645034771184,1.42145266,99.03,98.97,15.1521]
[1645034771389,1.42145266,99.037,98.97,15.1521]
[1645034771783,1.42145266,99.036,98.971,24.0573]
[1645034771986,1.42145266,99.038,98.971,24.0573]
[1645034772684,1.42145266,99.039,98.971,24.0573]
[1645034772885,16.57565266,99.04,98.954,23.8597]
[1645034773085,45.8989,99.059,98.954,23.8597]
[1645034773086,1.42145266,99.032,98.954,23.8597]
[1645034773284,1.42145266,99.031,98.954,23.8597]
[1645034773486,1.42145266,99.033,98.954,23.8597]
[1645034773686,1.42145266,99.036,98.955,23.017]
[1645034773889,1.42145266,99.033,98.96,15.1542]
[1645034774088,1.42145266,99.032,98.96,15.1542]
[1645034774692,1.42145266,99.033,98.96,15.1542]
[1645034774890,15.1549,99.03,98.96,15.1542]
[1645034776790,1.42145266,99.029,98.96,15.1542]
[1645034777194,16.57635266,99.03,98.96,15.1542]
[1645034778411,1.42145266,99.028,98.96,15.1542]
[1645034778611,15.1569,99.02,98.955,23.017]
[1645034782112,161.3,99.019,98.955,23.017]
[1645034782316,161.3,99.009,98.91,50.5284]
[1645034782513,161.3,99.007,98.913,22.591]
[1645034782714,1.42145266,99.002,98.913,22.591]
[1645034782914,14.53,98.99,98.913,22.591]
[1645034783914,15.163,98.98,98.913,22.591]
[1645034784614,10.163,98.98,98.913,22.591]
[1645034790820,1.42145266,98.983,98.92,15.1617]
[1645034791021,1.42145266,98.987,98.92,15.1617]
[1645034791222,26.02375266,98.989,98.92,15.1617]
[1645034791422,24.6023,98.989,98.92,15.1617]
[1645034794025,1.42145266,98.992,98.92,15.1617]
[1645034794229,1.42145266,98.996,98.92,15.1617]
[1645034795332,1.42145266,98.995,98.92,15.1617]
[1645034795732,1.42145266,98.996,98.92,15.1617]
[1645034796234,1.42145266,98.995,98.92,15.1617]
[1645034796435,1.42145266,98.993,98.92,15.1617]
[1645034796936,1.42145266,98.993,98.921,100.6]
[1645034797135,1.42145266,98.996,98.941,100.6]
[1645034797334,1.42145266,99.008,98.943,100.6]
[1645034797535,1.42145266,99.019,98.945,100.6]
[1645034797739,1.42145266,99.024,98.945,100.6]
[1645034798139,1.42145266,99.025,98.946,2.33746065]
[1645034798337,1.42145266,99.026,98.951,100.6]
[1645034798841,1.42145266,99.027,98.951,100.6]
[1645034799039,1.42145266,99.026,98.951,100.6]
[1645034799237,5.74592043,99.048,98.951,100.6]
[1645034799238,1.42145266,99.028,98.951,100.6]
[1645034799838,1.42145266,99.028,98.97,15.1521]
[1645034801147,1.42145266,99.026,98.97,15.1521]
[1645034801645,1.42145266,99.025,98.97,15.1521]
[1645034802148,1.42145266,99.025,98.96,15.1555]
[1645034802347,1.42145266,99.014,98.93,65.0483]
[1645034802546,1.42145266,99.009,98.93,65.0483]
[1645034802749,1.42145266,99.008,98.93,65.0483]
[1645034802947,1.42145266,99.007,98.93,65.0483]
[1645034803146,1.42145266,99.006,98.94,15.1572]
[1645034803547,1.42145266,99.005,98.93,50.5183]
[1645034803748,1.42145266,99.006,98.93,50.5183]
[1645034803970,1.42145266,99.005,98.93,50.5183]
[1645034804368,1.42145266,99.004,98.93,50.5183]
[1645034804870,1.42145266,99.004,98.95,15.1569]
[1645034805275,1.42145266,99.005,98.95,15.1569]
[1645034806273,1.42145266,99.007,98.95,15.1569]
[1645034806475,1.42145266,99.011,98.95,15.1569]
[1645034807074,24.219,99.019,98.95,15.1569]
[1645034807075,1.42145266,99.012,98.95,15.1569]
[1645034807675,1.42145266,99.011,98.95,15.1569]
[1645034808576,1.42145266,99.012,98.95,15.1569]
[1645034809477,1.42145266,99.011,98.95,15.1569]
[1645034809876,1.42145266,99.012,98.95,15.1569]
[1645034810178,1.42145266,99.01,98.95,15.1569]
[1645034810680,1.42145266,99.011,98.95,15.1569]
[1645034813283,1.42145266,99.01,98.95,15.1569]
[1645034815790,1.42145266,99.009,98.95,15.1569]
[1645034816489,1.42145266,99.007,98.95,15.1569]
[1645034817993,1.42145266,99.006,98.95,15.1569]
[1645034818795,1.42145266,99.007,98.95,15.1569]
[1645034819392,1.42145266,99.006,98.95,15.1569]
[1645034819594,1.42145266,99.003,98.95,15.1569]
[1645034820596,1.42145266,99.002,98.95,15.1569]
[1645034820794,1.42145266,99.003,98.95,15.1569]
[1645034821394,1.42145266,99.008,98.95,15.1569]
[1645034821594,1.42145266,99.007,98.95,15.1569]
[1645034821794,1.42145266,99.006,98.95,15.1569]
[1645034821994,1.42145266,99.005,98.95,15.1569]
[1645034822195,1.42145266,99.006,98.95,15.1569]
[1645034822394,24.219,99.019,98.95,15.1569]
[1645034822395,1.42145266,99.004,98.95,15.1569]
[1645034823296,1.42145266,99.005,98.95,15.1569]
[1645034823497,1.42145266,99.012,98.95,15.1569]
[1645034823896,1.42145266,99.012,98.951,100.6]
[1645034824098,1.42145266,99.012,98.96,15.1536]
[1645034825098,1.42145266,99.015,98.96,15.1536]
[1645034825299,1.42145266,99.012,98.961,22.9752]
[1645034825500,1.42145266,99.013,98.97,15.1522]
[1645034827803,1.42145266,99.014,98.97,15.1522]
[1645034828404,1.42145266,99.014,98.97,30.5761]
[1645034828605,1.42145266,99.014,98.97,15.1522]
[1645034828806,1.42145266,99.013,98.97,15.1522]
[1645034829606,1.42145266,99.012,98.97,15.1522]
[1645034830235,1.42145266,99.013,98.97,15.1522]
[1645034831633,1.42145266,99.012,98.961,22.9752]
[1645034831830,1.42145266,99.01,98.961,22.9752]
[1645034832031,1.42145266,99.009,98.961,22.9752]
[1645034832232,1.42145266,99.01,98.961,22.9752]
[1645034832433,1.42145266,99.012,98.962,100.6]
[1645034832731,1.42145266,99.012,98.961,22.9752]
[1645034832932,1.42145266,99.013,98.961,22.9752]
[1645034833336,1.42145266,99.014,98.962,100.6]
[1645034833533,1.42145266,99.013,98.962,100.6]
[1645034833932,1.42145266,99.013,98.97,15.154]
[1645034834539,1.42145266,99.012,98.97,15.154]
[1645034834742,1.42145266,99.012,98.961,22.9752]
[1645034835034,5.74657425,99.037,98.961,22.9752]
[1645034835035,1.42145266,99.009,98.961,22.9752]
[1645034835235,1.42145266,99.008,98.961,22.9752]
[1645034836633,1.42145266,99.009,98.961,22.9752]
[1645034836833,1.42145266,99.011,98.962,100.6]
[1645034837035,1.42145266,99.012,98.961,22.9752]
[1645034837634,1.42145266,99.012,98.97,15.1538]
[1645034838036,1.42145266,99.011,98.97,15.1538]
[1645034838439,1.42145266,99.009,98.97,15.1538]
[1645034838840,1.42145266,99.008,98.97,15.1538]
[1645034839039,1.42145266,99.008,98.961,22.9752]
[1645034839440,1.42145266,99.007,98.961,22.9752]
[1645034839638,1.42145266,99.002,98.961,22.9752]
[1645034840439,1.42145266,99.001,98.961,22.9752]
[1645034842641,1.42145266,99.0,98.961,22.9752]
[1645034843142,1.42145266,99.0,98.93,50.5182]
[1645034843442,1.42145266,99.0,98.92,23.5465]
[1645034843646,1.42145266,98.989,98.92,23.5465]
[1645034844042,1.42145266,98.988,98.92,23.5465]
[1645034844544,1.42145266,98.988,98.92,38.7068]
[1645034844743,1.42145266,98.983,98.92,38.7068]
[1645034845042,1.42145266,98.979,98.92,38.7068]
[1645034845242,1.42145266,98.977,98.92,38.7068]
[1645034845443,1.42145266,98.977,98.92,23.5465]
[1645034845645,1.42145266,98.981,98.92,23.5465]
[1645034845844,1.42145266,98.98,98.92,23.5465]
[1645034846844,16.58415266,98.98,98.92,23.5465]
[1645034847944,1.42145266,98.979,98.92,23.5465]
[1645034848649,15.1627,98.98,98.92,23.5465]
[1645034848846,1.42145266,98.982,98.92,23.5465]
[1645034848847,1.42145266,98.985,98.92,38.708]
[1645034849247,1.42145266,98.986,98.92,38.708]
[1645034850352,1.42145266,98.986,98.921,100.6]
[1645034850552,2.84784688,99.026,98.923,100.6]
[1645034850755,1.42055465,98.998,98.941,100.6]
[1645034850954,1.42055465,99.008,98.941,100.6]
[1645034851157,1.42055465,99.014,98.941,100.6]
[1645034851360,1.42055465,99.016,98.943,100.6]
[1645034851956,1.42055465,99.015,98.943,100.6]
[1645034852157,1.42055465,99.016,98.943,100.6]
[1645034852961,1.42055465,99.016,98.951,100.6]
[1645034853559,1.42055465,99.019,98.951,100.6]
[1645034853761,1.42055465,99.02,98.951,100.6]
[1645034853963,1.42055465,99.021,98.951,100.6]
[1645034854160,1.42055465,99.022,98.951,100.6]
[1645034854560,1.42055465,99.025,98.951,100.6]
[1645034854760,1.42055465,99.025,98.944,2.32606458]
[1645034854960,1.42055465,99.025,98.97,15.1534]
[1645034855863,1.42055465,99.022,98.97,15.1534]
[1645034856065,1.42055465,99.018,98.96,15.1554]
[1645034856862,1.42055465,99.021,98.96,15.1554]
[1645034857066,1.42055465,99.019,98.96,15.1554]
[1645034857264,1.42055465,99.018,98.96,15.1554]
[1645034857673,1.42055465,99.015,98.96,15.1554]
[1645034857863,8.68055465,99.015,98.942,22.9473]
[1645034858065,1.42055465,99.013,98.942,22.9473]
[1645034858263,1.42055465,99.007,98.942,22.9473]
[1645034859270,1.42055465,99.006,98.942,22.9473]
[1645034859473,1.42055465,99.001,98.942,22.9473]
[1645034859770,1.42055465,98.998,98.942,22.9473]
[1645034859969,1.42055465,98.994,98.942,22.9473]
[1645034860169,1.42055465,98.993,98.942,22.9473]
[1645034860571,1.42055465,98.992,98.942,22.9473]
[1645034860771,1.42055465,98.993,98.942,22.9473]
[1645034860970,1.42055465,98.995,98.942,22.9473]
[1645034862474,1.42055465,98.996,98.942,22.9473]
[1645034862676,1.42055465,99.001,98.942,22.9473]
[1645034862875,1.42055465,99.006,98.943,100.6]
[1645034863172,1.42055465,99.008,98.942,22.9473]
[1645034863674,1.42055465,99.009,98.95,15.157]
[1645034864094,1.42055465,99.01,98.95,15.157]
[1645034864293,1.42055465,99.011,98.95,15.157]
[1645034864893,1.42055465,99.012,98.95,15.157]
[1645034865094,1.42055465,99.011,98.95,15.157]
[1645034867195,1.42055465,99.01,98.95,15.157]
[1645034867395,1.42055465,99.012,98.95,15.157]
[1645034867795,24.7345,99.014,98.95,15.157]
[1645034883908,0.19709271,98.982,98.95,15.157]
[1645034884809,0.19709271,98.982,98.951,100.6]
[1645034885010,0.19709271,98.982,98.961,100.6]
[1645034885209,0.19709271,98.982,98.963,100.6]
[1645034886916,0.19709271,98.982,98.97,15.1513]
[1645034888314,0.19709271,98.982,98.962,23.1376]
[1645034894819,0.19709271,98.982,98.971,100.6]
[1645034895619,0.19709271,98.982,98.972,3.03219997]
[1645034902926,0.19709271,98.982,98.972,4.45426867]
[1645034907254,0.00709271,98.982,98.973,2.32606458]
[1645034907654,0.00709271,98.982,98.975,100.6]
[1645034908052,0.00709271,98.982,98.976,2.32606458]
[1645034908654,1.42055465,99.067,98.978,100.6]
[1645034908853,1.42055465,99.07,99.001,100.6]
[1645034909054,1.42055465,99.07,99.003,100.6]
[1645034909653,1.42055465,99.071,99.003,100.6]
[1645034910156,1.42055465,99.073,99.003,100.6]
[1645034910654,1.42055465,99.072,99.003,100.6]
[1645034910856,1.42055465,99.072,99.021,100.6]
[1645034911055,1.42055465,99.073,99.021,100.6]
[1645034911255,1.42055465,99.076,99.021,100.6]
[1645034912257,1.42055465,99.077,99.021,100.6]
[1645034912456,1.42055465,99.078,99.021,100.6]
[1645034912669,1.42055465,99.078,99.06,1.4220687]
[1645034912859,1.42055465,99.08,99.06,1.4220687]
[1645034913361,1.42055465,99.081,99.06,1.4220687]
[1645034914359,23.2169,99.082,99.06,1.4220687]
[1645034914863,24.63745465,99.082,99.06,1.4220687]
[1645034915565,23.2169,99.082,99.06,1.4220687]
[1645034916765,23.2169,99.082,99.06,6.87e-05]
[1645034917166,24.63745465,99.082,99.06,6.87e-05]
[1645034917669,23.2169,99.082,99.06,6.87e-05]
[1645034917867,15.1476,99.08,99.06,6.87e-05]
[1645034920272,24.63745465,99.082,99.06,6.87e-05]
[1645034920470,23.2169,99.082,99.06,6.87e-05]
[1645034923077,24.63745465,99.082,99.06,6.87e-05]
[1645034923475,1.42055465,99.079,99.06,6.87e-05]
[1645034924776,1.42055465,99.078,99.06,6.87e-05]
[1645034924976,1.42055465,99.079,99.06,6.87e-05]
[1645034925176,1.42055465,99.078,99.06,6.87e-05]
[1645034925479,1.42055465,99.079,99.06,6.87e-05]
[1645034925676,1.42055465,99.078,99.06,6.87e-05]
[1645034925878,1.42055465,99.079,99.06,6.87e-05]
[1645034926078,1.42055465,99.078,99.06,6.87e-05]
[1645034926280,1.42055465,99.077,99.06,6.87e-05]
[1645034929380,1.42055465,99.075,99.06,6.87e-05]
[1645034929982,1.42055465,99.074,99.06,6.87e-05]
[1645034930181,1.42055465,99.075,99.06,6.87e-05]
[1645034930983,1.42055465,99.074,99.06,6.87e-05]
[1645034932112,1.42055465,99.072,99.06,6.87e-05]
[1645034932508,1.42055465,99.071,99.06,6.87e-05]
[1645034932707,1.42055465,99.072,99.06,6.87e-05]
[1645034932908,1.42055465,99.071,99.06,6.87e-05]
[1645034933310,1.42055465,99.07,99.06,6.87e-05]
[1645034933711,1.42055465,99.075,99.061,3.03219997]
[1645034934008,1.42055465,99.073,99.061,3.03219997]
[1645034934209,24.2151,99.126,99.061,3.03219997]
[1645034934210,1.42055465,99.077,99.061,3.03219997]
[1645034934609,1.42055465,99.09,99.061,3.03219997]
[1645034935011,1.42055465,99.091,99.061,3.03219997]
[1645034935211,1.42055465,99.083,99.061,3.03219997]
[1645034935610,1.42055465,99.085,99.061,3.03219997]
[1645034936011,1.42055465,99.088,99.067,1.4554833]
[1645034936210,1.42055465,99.097,99.067,1.4554833]
[1645034936610,5.7429221,99.125,99.067,1.4554833]
[1645034936611,1.42055465,99.098,99.067,1.4554833]
[1645034937410,1.42055465,99.097,99.067,1.4554833]
[1645034937612,5.74241158,99.125,99.071,100.6]
[1645034937811,2.84784688,99.151,99.071,100.6]
[1645034938012,23.3689,99.169,99.071,100.6]
[1645034938211,23.3689,99.169,99.072,2.32606458]
[1645034938812,23.3689,99.169,99.08,15.133]
[1645034939110,23.3689,99.169,99.081,100.6]
[1645034939312,23.3689,99.169,99.081,127.58646458]
[1645034939510,23.3689,99.169,99.081,125.2604]
[1645034939710,23.3689,99.169,99.082,2.32606458]
[1645034940513,23.3689,99.169,99.101,100.6]
[1645034941914,23.3689,99.169,99.11,15.1292]
[1645034942113,23.3689,99.169,99.111,100.6]
[1645034942414,23.3689,99.169,99.133,1.4554833]
[1645034943614,23.3689,99.169,99.133,8.33e-05]
[1645034943815,23.3689,99.169,99.068,23.6805]
[1645034944215,15.1359,99.15,99.08,15.135]
[1645034944913,22.5459,99.15,99.081,24.8287]
[1645034946416,22.5459,99.15,99.07,15.137]
[1645034947216,15.1359,99.15,99.07,15.137]
[1645034948418,100.6,99.149,99.064,24.9402]
[1645034948620,15.1395,99.13,99.064,24.9402]
[1645034952321,15.1375,99.14,99.07,15.1372]
[1645034956023,22.8974,99.139,99.07,15.1372]
[1645034957426,15.1391,99.13,99.064,24.9402]
[1645034964528,22.8974,99.139,99.07,15.1371]
[1645034964730,22.8974,99.139,99.071,100.6]
[1645034965931,22.8974,99.139,99.081,100.6]
[1645034966832,22.8974,99.139,99.08,15.1355]
[1645034967034,22.8974,99.139,99.07,15.1372]
[1645034967232,22.8974,99.139,99.064,24.9402]
[1645034967834,5.74230562,99.138,99.064,24.9402]
[1645034968035,22.8974,99.139,99.064,24.9402]
[1645034968934,15.1388,99.13,99.064,24.9402]
[1645034969139,22.8974,99.139,99.064,24.9402]
[1645034969737,64.9924,99.16,99.064,24.9402]
[1645034969738,50.4624,99.16,99.065,78.0]
[1645034969935,15.1329,99.17,99.07,15.1372]
[1645034970238,2.84784688,99.183,99.07,29.6672]
[1645034970437,2.84784688,99.191,99.071,100.6]
[1645034970636,2.84784688,99.195,99.071,102.92606458]
[1645034970837,2.84784688,99.191,99.072,2.32606458]
[1645034971238,2.84784688,99.196,99.072,2.32606458]
[1645034971437,2.84784688,99.197,99.072,2.32606458]
[1645034971837,15.1308,99.19,99.091,100.6]
[1645034972039,15.1308,99.19,99.093,100.6]
[1645034972242,15.1308,99.19,99.092,23.7722]
[1645034972538,14.53,99.21,99.092,23.7722]
[1645034972539,109.90784688,99.188,99.092,23.7722]
[1645034972751,9.30784688,99.188,99.092,23.7722]
[1645034972940,100.6,99.187,99.092,23.7722]
[1645034973441,29.27958581,99.158,99.08,15.1354]
[1645034973738,29.27958581,99.158,99.071,22.7394]
[1645034974338,29.27958581,99.158,99.092,1.4570965]
[1645034974539,15.1358,99.15,99.092,1.4570965]
[1645034976840,22.5264,99.157,99.092,1.4570965]
[1645034977446,21.08958581,99.158,99.092,1.4570965]
[1645034977643,21.08958581,99.158,99.093,102.92621729]
[1645034978048,21.08958581,99.158,99.095,100.6]
[1645034978447,21.08958581,99.158,99.11,15.1315]
[1645034978648,21.08958581,99.158,99.111,100.6]
[1645034979254,21.08958581,99.158,99.112,2.32621729]
[1645034980878,21.08958581,99.158,99.121,100.6]
[1645034981982,21.08958581,99.158,99.131,100.6]
[1645034982280,24.1699,99.21,99.133,100.6]
[1645034982480,24.1699,99.21,99.135,100.6]
[1645034982679,24.1699,99.21,99.148,1.4570965]
[1645034983082,15.125,99.22,99.148,1.4570965]
[1645034983880,15.125,99.22,99.16,15.1242]
[1645034984680,23.2963,99.227,99.16,15.1242]
[1645034988386,22.9069,99.228,99.161,100.6]
[1645034988586,22.9069,99.228,99.17,15.1221]
[1645034988785,22.9069,99.228,99.163,100.6]
[1645034989984,22.9069,99.228,99.18,15.1204]
[1645034990184,0.327953,99.242,99.18,15.1204]
[1645034992987,0.327953,99.242,99.217,1.4570965]
[1645035001897,15.1221,99.24,99.217,1.4570965]
[1645035002598,0.327953,99.242,99.217,1.4570965]
[1645035007402,0.327953,99.242,99.19,15.12]
[1645035011008,0.327953,99.242,99.191,100.6]
[1645035011211,0.327953,99.242,99.221,1.4570965]
[1645035011414,0.327953,99.242,99.222,3.03219997]
[1645035015315,0.327953,99.242,99.221,1.4570965]
[1645035016914,15.1221,99.24,99.221,1.4570965]
[1645035025126,81.0,99.23,99.18,15.1216]
[1645035025329,87.61,99.23,99.171,22.9928]
[1645035025528,102.7338,99.23,99.171,22.9928]
[1645035028132,102.7338,99.23,99.17,15.1233]
[1645035028429,102.7338,99.23,99.16,15.1246]
[1645035028633,15.1263,99.22,99.151,24.7192]
[1645035029053,15.1263,99.22,99.111,2.32617238]
[1645035029252,5.73727401,99.219,99.122,24.7192]
[1645035029750,5.73727401,99.227,99.122,125.3192]
[1645035030952,15.1275,99.21,99.14,15.1277]
[1645035031154,23.1934,99.209,99.141,24.8879]
[1645035032856,23.1934,99.209,99.15,15.1264]
[1645035042263,24.5873,99.228,99.15,15.1264]
[1645035042468,24.5873,99.228,99.15,22.7364]
[1645035042665,24.5873,99.228,99.151,100.6]
[1645035042966,24.5873,99.228,99.15,9.93617238]
[1645035043165,24.5873,99.228,99.15,7.61]
[1645035043166,23.1961,99.227,99.15,7.61]
[1645035043364,15.1255,99.22,99.141,24.8879]
[1645035044165,23.1961,99.227,99.15,15.1255]
[1645035045581,15.1256,99.22,99.15,15.1255]
[1645035047182,13.52418904,99.219,99.15,15.1255]
[1645035047382,15.1274,99.21,99.141,24.8879]
[1645035047583,24.5183,99.209,99.141,24.8879]
[1645035048710,15.1284,99.2,99.141,24.8879]
[1645035049411,24.5183,99.209,99.15,15.1262]
[1645035049809,24.5873,99.228,99.15,15.1262]
[1645035050610,23.0814,99.227,99.15,15.1262]
[1645035051911,23.0814,99.227,99.151,100.6]
[1645035052114,23.0814,99.227,99.17,15.1225]
[1645035052316,23.0814,99.227,99.171,23.1932]
[1645035053312,15.121,99.25,99.18,15.1216]
[1645035057715,1.73516969,99.231,99.18,15.1216]
[1645035057915,1.42522917,99.226,99.18,15.1216]
[1645035058118,1.42522917,99.227,99.18,15.1216]
[1645035058316,1.42522917,99.226,99.18,15.1216]
[1645035059116,1.42522917,99.227,99.18,15.1216]
[1645035059517,1.42522917,99.229,99.18,15.1216]
[1645035059819,1.42522917,99.23,99.18,15.1216]
[1645035060019,1.42522917,99.227,99.18,15.1216]
[1645035060218,1.42522917,99.227,99.171,23.1932]
[1645035060417,1.42522917,99.227,99.14,50.4112]
[1645035060619,1.42522917,99.217,99.13,14.53]
[1645035060818,5.6,99.227,99.117,2.32617238]
[1645035060819,1.42522917,99.213,99.117,2.32617238]
[1645035061018,1.42522917,99.213,99.142,24.0475]
[1645035061220,1.42522917,99.212,99.142,24.0475]
[1645035061421,1.42522917,99.209,99.15,15.1254]
[1645035062021,1.42522917,99.206,99.15,15.1254]
[1645035062221,15.1287,99.2,99.142,24.0475]
[1645035062424,16.55392917,99.2,99.142,24.0475]
[1645035062821,1.42522917,99.199,99.142,24.0475]
[1645035063023,1.42522917,99.198,99.142,24.0475]
[1645035063423,1.42522917,99.197,99.142,24.0475]
[1645035063624,1.42522917,99.196,99.142,24.0475]
[1645035063824,15.1303,99.19,99.142,24.0475]
[1645035064824,15.1303,99.19,99.13,15.1295]
[1645035065624,15.1303,99.19,99.131,22.661]
[1645035069728,1.42522917,99.196,99.14,15.1281]
[1645035070131,1.42522917,99.206,99.141,100.6]
[1645035070427,14.53,99.25,99.141,100.6]
[1645035070428,1.42522917,99.221,99.141,100.6]
[1645035070629,1.42522917,99.224,99.142,2.32617238]
[1645035070827,23.0037,99.239,99.142,2.32617238]
[1645035070828,1.42522917,99.225,99.142,2.32617238]